Cogmind - Beta 14 @@@ ROGUE MODE // 2024.08.17 @ 22:31:15 Player: K.Ioz Result: Destroyed by LK-WYO(R) with Subdweller Beam Cannon Performance ------------- Evolutions (0) 0 Regions Visited (3) 600 Robots Destroyed (35) 175 Value Destroyed (743) 743 Prototype IDs (5) 100 Alien Tech Used (0) 0 Bonus (60) 60 TOTAL SCORE: 1678 Bonus ------- Follower Combat Kills 60 Cogmind --------- Core Integrity 0/250 Matter 165/300 Energy 203/265 System Corruption 0% Temperature Cool (9) Movement Walking (120) Location -10/Subcaves Parts ------- > --- POWER (1) -------- Improved Ion Engine > --- PROPULSION (2) --- Aluminum Leg Aluminum Leg > --- UTILITY (2) ------ Improved Heat Sink Small Storage Unit > --- WEAPON (2) ------- Subdweller Machine Gun Battle Cannon > --- INVENTORY (8) ---- Aluminum Leg Aluminum Leg Experimental Sensor Array Scrap Shield Beam Cannon Peak State ------------ > --- POWER ------------ Subdweller Power Source > --- PROPULSION ------- Aluminum Leg Aluminum Leg > --- UTILITY ---------- Improved Heat Sink Small Storage Unit > --- WEAPON ----------- Beamcaster Heavy Assault Rifle > --- INVENTORY -------- Improved Ion Engine Aluminum Leg Aluminum Leg Experimental Sensor Array Scrap Shield Beam Cannon Subdweller Machine Gun [Rating: 17] Favorites ----------- Power Ion Engine Engine Ion Engine Propulsion Aluminum Leg Leg Aluminum Leg Wheel Compact Wheel Utility Small Storage Unit Device Improved Heat Sink Storage Small Storage Unit Processor Signal Interpreter Protection Light Armor Plating Weapon Medium Laser Energy Gun Medium Laser Ballistic Gun Heavy Assault Rifle Ballistic Cannon Battle Cannon Build | -11 -10 -10 -10 ------- Run | Yrd Mat Min Sub Slots Evolved . | . . . . Power . | . . . . Propulsion . | . . . . Utility . | . . . . Weapon . | . . . . Parts Attached 33 | 8 13 2 10 Power 8 | 1 3 1 3 Engine 8 | 1 3 1 3 Core . | . . . . Reactor . | . . . . Propulsion 8 | 3 4 . 1 Treads . | . . . . Leg 7 | 2 4 . 1 Wheel 1 | 1 . . . Hover . | . . . . Flight . | . . . . Utility 7 | 2 2 . 3 Device 1 | . . . 1 Storage 3 | 2 . . 1 Processor 1 | . 1 . . Hackware . | . . . . Protection 2 | . 1 . 1 Artifact . | . . . . Weapon 10 | 2 4 1 3 Energy Gun 4 | 1 2 . 1 Energy Cannon . | . . . . Ballistic Gun 5 | 1 2 1 1 Ballistic Cannon 1 | . . . 1 Launcher . | . . . . Special Weapon . | . . . . Impact Weapon . | . . . . Slashing Weapon . | . . . . Piercing Weapon . | . . . . Special Melee Weapon . | . . . . Unidentified Prototypes . | . . . . Parts Lost 4 | . 2 . 2 Power 1 | . . . 1 Propulsion . | . . . . Utility 1 | . 1 . . Weapon 2 | . 1 . 1 Highest Loss Streak 2 | . 2 . 2 To Critical Strikes . | . . . . Average Slot Usage (%) 99 | . 98 100 99 Engine 13 | . 13 14 14 Leg 27 | . 27 28 28 Device 3 | . . . 11 Storage 13 | . 14 14 13 Processor 7 | . 8 14 1 Protection 2 | . 4 . . Energy Gun 12 | . 14 14 10 Ballistic Gun 13 | . 13 14 14 Ballistic Cannon 1 | . . . 3 Peak Build Rating 17 | 6 7 9 17 Average Rating 9 | 4 6 8 14 On Entrance 5 | . 6 7 9 Naked Turns . | . . . . Heaviest Build 31 | 14 17 15 31 Greatest Support 20 | 20 20 20 20 Greatest Overweight (x) 4 | 3 4 . 1 Average Overweight (x) . | . . . . Largest Inventory Capacity 8 | 8 8 8 8 Average Capacity 7 | 5 8 8 7 Most Carried 8 | 3 8 8 8 Average Carried 7 | 1 7 7 7 Final Capacity 8 | 8 8 8 8 Final Carried 8 | 3 8 8 6 Class Distribution -------------------- 75% | Scavenger-Mutant 24% | Mutant Dominant Class ---------------- Scavenger-Mutant | -10/Materials Scavenger-Mutant | -10/Mines Scavenger-Mutant | -10/Subcaves Resources | -11 -10 -10 -10 ----------- Run | Yrd Mat Min Sub Matter Collected 763 | 311 256 35 161 Remotely . | . . . . Salvage Created 1019 | 94 636 87 202 Parts 78 | 1 49 4 24 Haulers Intercepted . | . . . . Recyclers Shooed 1 | . 1 . . Parts Field Recycled . | . . . . Retrieved Matter . | . . . . Parts Self-Destructed 21 | . . . 21 Prevented . | . . . . Kills | -11 -10 -10 -10 ------- Run | Yrd Mat Min Sub Combat Hostiles Destroyed 29 | . 18 2 9 Guns 28 | . 18 2 8 Cannons 1 | . . . 1 Classes Destroyed 6 | 1 4 . 1 Worker 2 | . 2 . . Recycler 1 | 1 . . . Watcher 3 | . 3 . . Swarmer 14 | . 9 . 5 Grunt 11 | . 9 2 . Subdweller 4 | . . . 4 Best Kill Streak 6 | 1 6 2 3 Combat Bots Only 5 | . 5 2 3 Max Kills in Single Turn 2 | 1 2 1 2 Gunslinging . | . . . . Exploded . | . . . . Melee . | . . . . Uniques/NPCs Destroyed . | . . . . Combat | -11 -10 -10 -10 -------- Run | Yrd Mat Min Sub Hostile Shots Fired 160 | . 88 9 63 Missed 54 | . 27 3 24 Damage Taken 1357 | . 623 81 653 Core 256 | . 130 24 102 Absorbed by Shields . | . . . . Core Remaining (%) 100 | 100 . . . Volleys Fired 126 | 17 60 10 39 Largest 2 | 2 2 2 2 Hottest 98 | 70 70 73 98 Shots Fired 244 | 26 120 20 78 Gun 227 | 26 120 20 61 Cannon 17 | . . . 17 Launcher . | . . . . Special . | . . . . Kinetic 143 | 17 60 10 56 Thermal 101 | 9 60 10 22 Explosive . | . . . . Electromagnetic . | . . . . Robot Hit Streak 11 | 3 11 6 8 Robot Miss Streak 7 | 7 4 1 6 Penetration Max . | . . . . Secondary Targets 5 | . 4 1 . Max Gunslinging Chain 1 | . 1 1 . Shots Hit Robots 149 | 12 80 7 50 Core Hits 56 | 1 36 5 14 Critical Kills . | . . . . Critical Parts Destroyed 1 | . . . 1 Critical Strikes 8 | . 6 . 2 Burn 7 | . 6 . 1 Destroy 1 | . . . 1 Melee Attacks . | . . . . Impact . | . . . . Slashing . | . . . . Piercing . | . . . . Sneak Attacks . | . . . . Combat Hostiles . | . . . . Follow-up Attacks . | . . . . Damage Inflicted 2147 | 167 939 87 954 Guns 1846 | 167 939 87 653 Cannons 301 | . . . 301 Explosions . | . . . . Melee . | . . . . Ramming . | . . . . Kinetic 1302 | 116 406 48 732 Thermal 845 | 51 533 39 222 Explosive . | . . . . Electromagnetic . | . . . . Impact . | . . . . Slashing . | . . . . Piercing . | . . . . Highest Corruption . | . . . . Average Corruption . | . . . . Corruption Purged . | . . . . Corruption Blocked . | . . . . Overload Shots . | . . . . Overflow Damage . | . . . . Projectiles . | . . . . Explosions . | . . . . Melee . | . . . . Knockbacks 3 | . . . 3 Impact . | . . . . Kinetic 3 | . . . 3 Secondary . | . . . . Self-Inflicted Damage . | . . . . Shots . | . . . . Rammed . | . . . . Targets Rammed . | . . . . Kicked . | . . . . Crushed . | . . . . Highest Temperature 214 | 27 214 84 . Average Temperature 57 | 13 65 41 . Received Heat Transfer 303 | . 192 48 63 Siege Activations . | . . . . Robots Corrupted . | . . . . Combat Hostiles . | . . . . Parts Fried . | . . . . Impact Corruptions . | . . . . Robots Melted . | . . . . Combat Hostiles . | . . . . Parts Melted 5 | . 5 . . Heat Transferred 2775 | 148 2035 111 481 Parts Sabotaged . | . . . . Parts Stolen . | . . . . Parts Stripped . | . . . . Power Chain Reactions . | . . . . Alert | -11 -10 -10 -10 ------- Run | Yrd Mat Min Sub Peak Influence 332 | 5 332 128 . Initial 57 | . 3 57 . Average 119 | 1 172 48 . Maximum Alert Level 1 | . 1 . . Low Security (%) 70 | 100 51 100 . Level 1 29 | . 48 . . Level 2 . | . . . . Level 3 . | . . . . Level 4 . | . . . . Level 5 . | . . . . High Security . | . . . . Max Security . | . . . . Squads Dispatched 4 | . 4 . . Investigation 2 | . 2 . . Extermination . | . . . . Reinforcement 2 | . 2 . . Assault . | . . . . Garrison . | . . . . Intercept . | . . . . Searches Triggered . | . . . . Construction Impeded . | . . . . Haulers Reinforced . | . . . . Active Scanning Responses . | . . . . Cargo Convoy Interrupts . | . . . . Stealth | -11 -10 -10 -10 --------- Run | Yrd Mat Min Sub Distress Signals 3 | . 3 . . Communications Jammed . | . . . . Distress Signals . | . . . . Times Spotted 43 | . 26 3 14 Peak Tracking Total 5 | . 5 2 3 Tactical Retreats . | . . . . Traps | -11 -10 -10 -10 ------- Run | Yrd Mat Min Sub Traps Triggered 5 | . 5 . . Indirectly . | . . . . Trap Hack Attempts . | . . . . Triggered . | . . . . Disarmed . | . . . . Reprogrammed . | . . . . Reused . | . . . . Traps Extracted . | . . . . Installed . | . . . . Triggered . | . . . . Machines | -11 -10 -10 -10 ---------- Run | Yrd Mat Min Sub Machines Disabled . | . . . . Max in Single Turn . | . . . . Machines Repaired . | . . . . Machines Dismantled . | . . . . Machines Sabotaged . | . . . . Overloaded Fab Kills . | . . . . Hacking | -11 -10 -10 -10 --------- Run | Yrd Mat Min Sub Machines Accessed 9 | . 6 . 3 Terminals 6 | . 6 . . Fabricators . | . . . . Repair Stations . | . . . . Recycling Units . | . . . . Scanalyzers . | . . . . Garrison Access . | . . . . Total Hacks 18 | . 11 . 7 Successful 11 | . 4 . 7 Failed 7 | . 7 . . Catastrophic 1 | . 1 . . Database Lockouts . | . . . . Manual . | . . . . Terminals 11 | . 11 . . Fabricators . | . . . . Repair Stations . | . . . . Recycling Units . | . . . . Scanalyzers . | . . . . Garrison Access . | . . . . Terminal Hacks 11 | . 4 . 7 Record 5 | . . . 5 Prototype ID Bank 3 | . 3 . . Open Door 1 | . . . 1 Locate Traps 1 | . 1 . . Release Object 1 | . . . 1 Fabricator Hacks . | . . . . Repair Station Hacks . | . . . . Recycling Unit Hacks . | . . . . Scanalyzer . | . . . . Garrison Access Hacks . | . . . . Unauthorized Hacks . | . . . . Terminals . | . . . . Fabricators . | . . . . Repair Stations . | . . . . Recycling Units . | . . . . Scanalyzers . | . . . . Garrison Access . | . . . . Data Cores Recovered . | . . . . Used . | . . . . Hacking Detections 6 | . 6 . . Full Trace Events . | . . . . Feedback Events . | . . . . Feedback Blocked . | . . . . Robot Schematics Acquired . | . . . . Robots Built . | . . . . Authchips . | . . . . Time . | . . . . Total Robot Build Rating . | . . . . Part Schematics Acquired . | . . . . Parts Built . | . . . . Authchips . | . . . . Time . | . . . . Total Part Build Rating . | . . . . Parts Repaired . | . . . . Time . | . . . . Parts Recycled . | . . . . Recycled Matter . | . . . . Retrieved Matter . | . . . . Retrieved Components . | . . . . Parts Scanalyzed . | . . . . Part Schematics Acquired . | . . . . Parts Damaged . | . . . . Bothacking | -11 -10 -10 -10 ------------ Run | Yrd Mat Min Sub Used RIF Installer . | . . . . Robots Hacked . | . . . . Non-combat . | . . . . Combat . | . . . . Robot Hacks Applied . | . . . . Relay Couplers Released . | . . . . Fabnet Peak Effective % . | . . . . Robots Rewired . | . . . . Allies Hacked . | . . . . Hacks Repelled . | . . . . Allies | -11 -10 -10 -10 -------- Run | Yrd Mat Min Sub Total Allies 2 | . . 2 . Largest Group 2 | . . 2 2 Highest-Rated Group 49 | . . 49 49 Highest-Rated Ally 31 | . . 31 31 Total Orders . | . . . . Ally Attacks 4 | . . . 4 Total Damage 97 | . . . 97 Kills 2 | . . . 2 Allies Corrupted . | . . . . Allies Melted . | . . . . Intel | -11 -10 -10 -10 ------- Run | Yrd Mat Min Sub Robot Analysis Total . | . . . . Derelict Logs Recovered 2 | . . 2 . Drone Launches . | . . . . Drone Recoveries . | . . . . Exploration | -11 -10 -10 -10 ------------- Run | Yrd Mat Min Sub Turns Passed 3228 | 197 1438 739 854 Spaces Moved 1956 | 123 880 372 581 Core 29 | 26 3 . . Treads . | . . . . Legs 1925 | 95 877 372 581 Wheels 2 | 2 . . . Hover . | . . . . Flight . | . . . . Fastest Speed 50 | 50 100 120 120 Average Speed 119 | 109 120 120 120 Slowest Speed 250 | 200 250 120 190 Overloaded Moves . | . . . . Propulsion Burnouts . | . . . . Robots Hopped . | . . . . Cave-ins Triggered . | . . . . Exploration Rate (%) 56 | 4 98 86 37 Regions Visited 3 Branch Regions 2 Pre-discovered Areas 1 | . . . 1 Known Exits Taken 2 | . 1 1 . Unknown Exits Taken 1 | 1 . . . Scrap Searched 8 | . . 1 7 Spaces Dug . | . . . . Terrain Destroyed 1 | . . . 1 Melee . | . . . . Projectile 1 | . . . 1 AOE . | . . . . Terrain Rammed . | . . . . Walls Destroyed . | . . . . Machines Disabled . | . . . . Actions | -11 -10 -10 -10 --------- Run | Yrd Mat Min Sub Total 2613 | 156 1150 646 661 Wait 437 | 3 169 255 10 Move 1953 | 122 879 371 581 Hop . | . . . . Pick Up 28 | 4 15 3 6 Fast Attach 20 | 7 7 1 5 Attach 6 | 1 2 . 3 Detach 3 | . . . 3 Swap 7 | . 4 1 2 Drop 30 | 2 14 5 9 Fire 126 | 17 60 10 39 Melee . | . . . . Ram . | . . . . Kick . | . . . . Crush . | . . . . Escape Stasis . | . . . . Rewire . | . . . . Trap . | . . . . Miscellaneous 3 | . . . 3 Route ------- -11/Scrapyard -10/Materials (discovered 4 exits: *Mat x3 / *Min) -10/Mines (discovered 3 exits: *Mat x2 / *Sub) -10/Subcaves History --------- Turn | Location | Event 6 | -11/Scrapyard | Discovered new exit (range 15) 198 | -11/Scrapyard | Entered Materials 313 | -10/Materials | Build established: Mutant 367 | -10/Materials | Discovered new exit (range 7) 919 | -10/Materials | Discovered new exit (range 16) 1000 | -10/Materials | Core integrity fell below 50% 1061 | -10/Materials | Build established: Scavenger-Mutant 1122 | -10/Materials | Discovered new exit (range 12) 1536 | -10/Materials | Discovered new exit (range 10) 1545 | -10/Materials | Identified exit to Materials 1604 | -10/Materials | Identified exit to Mines 1636 | -10/Materials | Entered Mines 1710 | -10/Mines | Found a hidden stash of uninstalled traps 1767 | -10/Mines | Learned location of 1 exit from Materials 1784 | -10/Mines | Found a damaged Exp. Sensor Array with a note attached 1789 | -10/Mines | Found Prototype Device 1822 | -10/Mines | Discovered exit to Materials (range 5) 1832 | -10/Mines | Discovered exit to Materials (range 10) 1862 | -10/Mines | Joined a pair of Derelicts in attacking an 0b10 outpost 1946 | -10/Mines | Identified exit to Subcaves 1989 | -10/Mines | Received a Rocket Launcher from a helpful Derelict 2375 | -10/Mines | Entered Subcaves 2375 | -10/Subcaves | Accompanied by 2 allies 2380 | -10/Subcaves | Led the pair of lost Derelicts to an unsafe place 2854 | -10/Subcaves | Released subatomizers from SUBCON Basin 3166 | -10/Subcaves | Visited Clippyterm 3170 | -10/Subcaves | Learned location of Section 7 (-3) 3170 | -10/Subcaves | Learned 40 Factory zone layouts 3178 | -10/Subcaves | Core integrity fell below 20% 3229 | -10/Subcaves | Destroyed by LK-WYO(R) with Subdweller Beam Cannon Last Messages --------------- It looks like you're trying to take over the world, would you like help? World map updated: -3/Section 7. >>Record! "Cartography" It looks like you want to prove yourself as a member of the Cartography Club, why not cheat using advanced predictive AI techniques? Data stored: Factory zone layouts (x40). >>Record! "Tab" It looks like you're biased against spaces, I think you need more help than I can offer. 03170_ Connecting with Clippyterm... 03183_ QA-XHG(R) knocked back. 03191_ Hvy. Assault Rifle destroyed. 03199_ OY-9MD(R) suffers critical hit (Destroy). 03199_ Destroyed Sub. Machine Gun. 03204_ OY-9MD(R) knocked back. 03207_ QA-XHG(R) knocked back. 03210_ Sub. Power Source destroyed. 03213_ QA-XHG(R) destroyed. Map ----- +----------------------------------------------------+ | ??????????????????## #?# ###### ##?#"" | | ????????????????### ##?# ## ### ### " | | ???????????????## #??# # ## | | ???????????????# ##?# #& | | ???????????????# ### " | | ???????????????# ### ## ## | | ???????????????# ##?###### # | | ???????????????##### % ## # ####?## #### # | | ?????????????????### ### ####??### ## | | ?????????????????# ## #????## ## | | ?????????????????# ### #????# # | | ????????????????## #?# ##????# | | ????????????????# ### #?????### | | ????????????????# ### ???????# | | ???????????????## ## #?????## ## | | ??????????????## ## #??????# ### | | ??????????????# ### ##??? #?# | | ??????????????###### ## #? ###?? | | ???????????????????##R ### ### #????? | | ?????????????######## #? ??## ##?????? | | ?????????????#"""##; ## # # ???????? | | ?????????????#"" ## ???????? | | ?????????????#"X ????????? | | ?????????????#"" ## ????????? | | ?????????????#"""## ####?????????? | | ?????????????##### @ ###????????????? | | ???????????????## #??????????????? | | ??????????????## ; ## #??????????????? | | ??????????????# ### & ### #??????????????? | | ??????????????# #?? % #??###??????????????? | | ??????????????###"#??R%##???????????????????? | | ????????????????###??% %????????????????????? | | ????????????????????? %##???????????????????? | | ?????????????????????%"#????????????????????? | | ?????????????????????""#????????????????????? | | ??????????????????????" ????????????????????? | | ?????????????????????? ?????????????????????? | | ????????????????????????????????????????????? | | ????????????????????????????????????????????? | | ????????????????????????????????????????????? | | ????????????????????????????????????????????? | | ????????????????????????????????????????????? | | ????????????????????????????????????????????? | | ????????????????????????????????????????????? | | ????????????????????????????????????????????? | | ????????????????????????????????????????????? | | ????????????????????????????????????????????? | | ????????????????????????????????????????????? | | ????????????????????????????????????????????? | | ????????????????????????????????????????????? | +----------------------------------------------------+ Best States ------------- Heat Dissipation 39 Energy Generation 15 Energy Capacity 265 Matter Stores 300 Matter Capacity 300 Sight Range 16 Terrain Scan Density 10 Armor Coverage 800 Evasion (%) 55 Item Schematics ----------------- None Robot Schematics ------------------ None Fabricated ------------ Nothing Alien Tech Used ----------------- None Achievements -------------- None Challenges ------------ None Game ------ Seed MatterProtonDrive Manual? 0 Play Time 00:45:15 Cumulative 190.0 hours Start 2024.08.17 @ 05:40:54 End 2024.08.17 @ 22:31:15 Sessions 6 Manual Loads 0 Difficulty Rogue Special Mode None Game No. 144 Rogue 111 Adventurer 0 Explorer 33 Win Type - Total 4 Types 4/0/0/0/0/0/0/0/0 Lore% 36 Gallery% 58 Achievement% 58 Wizard Run 0 Options --------- Layout 2 ASCII 1 Keyboard 1 Movement Vi Keybinds 0 Fullscreen 1 Font 24/Proggy Map View 50x49 Zoom Use 0% Tactical HUD 1 Map Filters NONE Filters LOW_CONTRAST(47,30,31) Steam 1 RUN: cf80fe95-4a6e-4e9d-b594-42bd8c039efe